[Event "Mona Karff Memorial 2023"]
[Site "New York"]
[Date "2023.11.20"]
[Round "5.4"]
[White "Teasley, Dorothy O."]
[Black "Radchenko, Anna Sophia"]
[Result "1/2-1/2"]
[ECO "D02"]
[WhiteElo "2044"]
[BlackElo "1540"]
[Annotator "RC"]
[PlyCount "86"]
[EventDate "2023.11.15"]
[EventType "swiss"]
[EventCountry "USA"]
[SourceTitle "playchess.com"]
[Source "ChessBase"]
[SourceQuality "1"]
[TimeControl "5400+30"]

1. d4 {[%emt 0:00:03]} d5 {[%emt 1:31:00]} 2. Nf3 {[%emt 0:00:07]} Nf6 {[%emt 0:00:00]} 3. Bf4 {[%emt 0:00:10]} e6 {[%emt 0:00:00]} 4. e3 {[%emt 0:00:08]} Be7 {[%emt 0:00:00]} 5. h3 {[%emt 0:00:07]} O-O {[%emt 0:00:00]} 6. Nbd2 {[%emt 0:00:07]} b6 {[%emt 0:00:00]} 7. c3 {[%emt 0:00:14]} Nbd7 {[%emt 0:00:00]} 8. Bd3 {[%emt 0:00:18]} c5 {[%emt 0:00:00]} 9. O-O {[%emt 0:00:09]} Bb7 {[%emt 0:00:00]} 10. Re1 {[%emt 0:01:07]} Rc8 {[%emt 0:00:00]} 11. Qb1 {[%emt 0:00:26]} h6 {[%emt 0:00:00]} 12. Bh2 {[%emt 0:00:52]} Kh8 {[%emt 0:00:00]} 13. e4 {[%emt 0:03:15]} dxe4 {[%emt 0:00:00]} 14. Nxe4 {[%emt 0:00:15]} Rg8 {[%emt 0:00:00]} 15. Nxf6 {[%emt 0:02:50]} Nxf6 {[%emt 0:00:00]} 16. Ne5 {[%emt 0:06:29]} Rf8 {[%emt 0:00:00]} 17. dxc5 {[%emt 0:05:46]} Qd5 {[%emt 0:00:00]} 18. Bf1 {[%emt 0:00:25]} Qxc5 {[%emt 0:00:00]} 19. Qd3 {[%emt 0:03:42]} Rcd8 {[%emt 0:00:00]} 20. Qe3 {[%emt 0:01:47]} Qc8 {[%emt 0:00:00]} 21. Kh1 {[%emt 0:02:58]} Kg8 {[%emt 0:00:00]} 22. c4 {[%emt 0:02:33]} Bc5 {[%emt 0:00:00]} 23. Qe2 {[%emt 0:01:05]} Ne4 {[%emt 0:00:00]} 24. Bg3 {[%emt 0:00:25]} Rd2 {[%emt 0:00:00]} 25. Qg4 {[%emt 0:00:49]} Bxf2 {[%emt 0:00:00]} 26. Rxe4 {[%emt 0:00:51]} Bxe4 {[%emt 0:00:00]} 27. Bxf2 {[%emt 0:01:43]} Rxf2 {[%emt 0:00:00]} 28. Qxe4 {[%emt 0:00:25]} Rxb2 {[%emt 0:00:00]} 29. Nc6 {[%emt 0:02:07]} Qd7 {[%emt 0:00:00]} 30. Ne5 {[%emt 0:02:05]} Qd8 {[%emt 0:00:00]} 31. Nc6 {[%emt 0:01:10]} Qf6 {[%emt 0:00:00]} 32. Rd1 {[%emt 0:01:31]} Rxa2 {[%emt 0:00:00]} 33. Ne5 {[%emt 0:00:13]} Rf2 {[%emt 0:00:00]} 34. Bd3 {[%emt 0:00:37]} Qf5 {[%emt 0:00:00]} 35. Qd4 {[%emt 0:03:25]} Qf4 {[%emt 0:00:00]} 36. Be4 {[%emt 0:00:57]} Rf1+ {[%emt 0:00:00]} 37. Rxf1 {[%emt 0:00:14]} Qxf1+ {[%emt 0:00:00]} 38. Kh2 {[%emt 0:00:28]} Qf4+ {[%emt 0:00:00]} 39. g3 {[%emt 0:01:02]} Qf1 {[%emt 0:00:00]} 40. Bd3 {[%emt 0:57:35]} Qc1 {[%emt 0:00:00]} 41. Nd7 {[%emt 0:00:00]} Qd2+ {[%emt 0:00:00]} 42. Kg1 {[%emt 0:00:00]} Qe1+ {[%emt 0:00:00]} 43. Kg2 {[%emt 0:00:00]} Qd2+ {[%emt 0:00:00]} 1/2-1/2